bitfinex/quotes_SOLUSD_20240626
["timestamp","ask_amount","ask_price","bid_price","bid_amount"]
[1719416834880,27.8341205,136.78,136.76,7.3117]
[1719416835077,0.8441205,136.78,136.77,7.3115]
[1719416835383,0.8441205,136.78,136.77,25.5903]
[1719416836268,27.8341205,136.78,136.74,25.5943]
[1719416836481,0.8441205,136.78,136.75,7.3121]
[1719416836883,0.8441205,136.78,136.74,18.2817]
[1719416837170,0.8441205,136.78,136.72,18.2855]
[1719416837376,0.8441205,136.78,136.73,7.3133]
[1719416837377,7.3117,136.77,136.73,7.3133]
[1719416837582,8.1552205,136.78,136.74,7.313]
[1719416838390,7.3116,136.77,136.73,7.3136]
[1719416838998,0.8441205,136.78,136.74,25.5959]
[1719416839203,26.99,136.76,136.74,25.5959]
[1719416839373,26.99,136.76,136.74,18.2828]
[1719416839570,7.3118,136.77,136.73,7.4834]
[1719416839999,8.1552205,136.78,136.74,7.313]
[1719416840292,0.8441205,136.78,136.74,7.313]
[1719416840499,8.1554205,136.78,136.74,7.313]
[1719416840792,7.3117,136.77,136.73,25.7664]
[1719416840999,7.3117,136.77,136.73,25.5964]
[1719416841179,8.1553205,136.78,136.74,7.3131]
[1719416841792,8.1553205,136.78,136.74,7.313]
[1719416842574,0.8441205,136.78,136.75,7.3125]
[1719416842776,0.8441205,136.78,136.76,7.3116]
[1719416843105,0.8441205,136.78,136.77,7.3115]
[1719416843476,0.8441205,136.78,136.76,7.3118]
[1719416843781,0.8441205,136.78,136.75,18.4502]
[1719416843782,8.1551205,136.78,136.75,18.4502]
[1719416843982,26.99,136.77,136.75,18.2802]
[1719416844188,0.8441205,136.78,136.75,25.5927]
[1719416844390,26.99,136.77,136.75,25.5927]
[1719416845179,0.8441205,136.78,136.75,25.5927]
[1719416845795,8.1551205,136.78,136.75,18.2802]
[1719416846098,0.8441205,136.78,136.75,25.5927]
[1719416846400,0.8441205,136.78,136.75,18.2802]
[1719416846598,0.8441205,136.78,136.76,0.17]
[1719416846782,0.8441205,136.78,136.76,7.4819]
[1719416846978,27.8341205,136.78,136.76,0.17]
[1719416847596,27.8341205,136.78,136.76,7.4818]
[1719416847803,27.8341205,136.78,136.77,7.3115]
[1719416847989,27.8341205,136.78,136.76,7.4818]
[1719416848193,0.8441205,136.78,136.76,7.4818]
[1719416848387,0.8441205,136.78,136.77,7.3115]
[1719416848591,0.8441205,136.78,136.77,25.7603]
[1719416849286,0.8441205,136.78,136.77,31.9983]
[1719416849492,0.8441205,136.78,136.77,32.1683]
[1719416849691,0.8441205,136.78,136.77,33.63015897]
[1719416850337,0.8441205,136.78,136.77,59.1583]
[1719416850483,16.1398,136.86,136.81,7.3089]
[1719416851302,7.3073,136.85,136.81,7.3089]
[1719416851495,26.99,136.82,136.8,25.7533]
[1719416852088,23.447,136.86,136.8,18.4436]
[1719416852289,23.447,136.86,136.82,7.3085]
[1719416852591,7.3072,136.86,136.82,7.3085]
[1719416852993,26.99,136.83,136.82,7.3085]
[1719416853493,7.3069,136.86,136.82,7.3088]
[1719416854500,7.3073,136.85,136.81,25.5813]
[1719416854701,7.3073,136.85,136.82,7.3088]
[1719416855016,7.3069,136.86,136.82,7.3088]
[1719416855211,7.3064,136.87,136.83,7.3082]
[1719416855820,7.3067,136.86,136.83,7.3082]
[1719416856318,26.99,136.84,136.82,7.3086]
[1719416856509,7.3067,136.86,136.82,7.3086]
[1719416856904,23.375,136.87,136.83,7.3081]
[1719416857104,7.3062,136.87,136.83,7.3081]
[1719416857836,7.3062,136.87,136.84,7.3077]
[1719416858018,276.7851,136.9,136.85,7.3071]
[1719416858323,7.3054,136.89,136.85,7.3071]
[1719416858721,7.3058,136.88,136.84,25.5766]
[1719416860117,16.1851,136.9,136.85,7.3072]
[1719416860325,16.1851,136.9,136.84,18.269]
[1719416860503,7.3057,136.88,136.84,25.5763]
[1719416860704,7.3052,136.89,136.85,7.307]
[1719416860907,7.3056,136.88,136.84,25.5766]
[1719416862228,7.3062,136.87,136.84,18.269]
[1719416862410,16.1851,136.9,136.82,7.3086]
[1719416862411,7.307,136.86,136.82,7.3086]
[1719416862923,7.3063,136.87,136.83,7.3083]
[1719416863826,18.266,136.87,136.81,7.3092]
[1719416864211,7.3081,136.84,136.79,25.5847]
[1719416864614,7.3081,136.84,136.79,18.2748]
[1719416864814,7.3081,136.84,136.8,7.3097]
[1719416865220,7.3084,136.83,136.79,25.585]
[1719416865426,18.2684,136.85,136.76,18.2791]
[1719416865728,18.2684,136.85,136.78,7.3109]
[1719416865729,7.3091,136.82,136.78,7.3109]
[1719416866320,7.3106,136.79,136.75,7.3122]
[1719416866514,7.3101,136.8,136.76,7.3119]
[1719416866715,26.99,136.77,136.76,7.312]
[1719416867413,26.99,136.77,136.72,36.5695]
[1719416867414,6.604,136.83,136.77,18.2786]
[1719416867617,26.99,136.78,136.77,18.2786]
[1719416868333,26.99,136.78,136.77,25.59]
[1719416868717,26.99,136.78,136.77,18.2786]
[1719416869012,26.99,136.78,136.76,7.3119]
[1719416869223,26.99,136.78,136.75,25.594]
[1719416869432,7.3106,136.79,136.75,25.594]
[1719416869631,26.99,136.77,136.75,25.594]
[1719416871744,7.3123,136.76,136.72,25.599]
[1719416872041,7.3117,136.77,136.73,7.3135]
[1719416872712,7.3111,136.78,136.74,7.313]
[1719416874327,7.3115,136.77,136.73,25.5963]
[1719416874743,7.3111,136.78,136.74,7.3131]
[1719416875541,7.3116,136.77,136.73,25.5963]
[1719416875946,7.3112,136.78,136.74,7.3131]
[1719416876955,3.21087078,136.82,136.75,18.2811]
[1719416877244,7.3097,136.81,136.77,7.3114]
[1719416877454,7.3103,136.8,136.76,7.3118]
[1719416880457,7.3104,136.79,136.75,25.5935]
[1719416880939,7.3118,136.77,136.74,0.17]
[1719416881164,3.21087078,136.82,136.72,18.2843]
[1719416881323,7.3115,136.77,136.73,0.17]
[1719416881523,7.3125,136.76,136.72,18.2843]
[1719416881759,26.99,136.73,136.72,18.2843]
[1719416881929,26.99,136.74,136.72,25.5985]
[1719416883845,7.3117,136.77,136.73,7.3136]
[1719416884039,26.99,136.74,136.73,7.3136]
[1719416885541,26.99,136.74,136.72,18.2843]
[1719416885851,7.3127,136.75,136.72,18.2843]
[1719416886023,15.2025,136.78,136.72,18.2843]
[1719416886228,7.3117,136.77,136.73,7.3133]
[1719416886640,22.5137,136.78,136.74,7.313]
[1719416886836,7.3113,136.78,136.74,25.5953]
[1719416887245,7.3115,136.77,136.74,18.2824]
[1719416887651,7.3111,136.78,136.74,25.5952]
[1719416887833,7.3111,136.78,136.74,25.5953]
[1719416888156,57.27387078,136.82,136.74,18.2824]
[1719416888323,57.27387078,136.82,136.72,7.3137]
[1719416888324,7.3121,136.76,136.72,7.3137]
[1719416888833,18.2756,136.8,136.71,25.7704]
[1719416888834,7.3127,136.75,136.71,25.7704]
[1719416889028,18.2756,136.8,136.71,18.4559]
[1719416889346,7.3121,136.76,136.72,7.3139]
[1719416889644,7.3121,136.76,136.72,18.2843]
[1719416889826,7.3121,136.76,136.72,25.5983]
[1719416890547,18.2776,136.78,136.7,18.2882]
[1719416890771,0.17,136.77,136.7,18.2882]
[1719416891051,26.99,136.72,136.7,18.2882]
[1719416892249,4.36385361,136.8,136.72,25.5991]
[1719416892250,7.3118,136.77,136.72,25.5991]
[1719416892638,18.4444,136.81,136.73,1.07397168]
[1719416892834,26.99,136.76,136.72,18.2854]
[1719416893035,7.312,136.76,136.72,25.5992]
[1719416893353,7.3116,136.77,136.73,7.3135]
[1719416894332,7.3121,136.76,136.72,25.5994]
[1719416895037,7.3122,136.76,136.72,25.5994]
[1719416896550,7.3122,136.76,136.73,7.3136]
[1719416896858,18.4444,136.81,136.74,7.3128]
[1719416897154,18.4444,136.81,136.73,7.3135]
[1719416897347,7.3118,136.77,136.73,7.3135]
[1719416898055,7.3112,136.78,136.74,18.2826]
[1719416898357,7.3109,136.79,136.75,7.3125]
[1719416899046,7.3109,136.79,136.75,8.77481021]
[1719416899350,7.3111,136.78,136.75,1.46231021]
[1719416899557,7.3125,136.76,136.73,16.5878]
[1719416899743,7.3126,136.75,136.72,13.4903]
[1719416899928,7.3131,136.74,136.72,6.1761]
[1719416900134,6.376,136.81,136.7,15.8604]
[1719416900330,18.2805,136.76,136.68,24.5935]
[1719416900545,7.3145,136.72,136.68,31.9095]
[1719416901955,7.3145,136.72,136.68,25.6055]
[1719416902661,7.3138,136.73,136.69,7.3157]
[1719416902875,15.6633,136.75,136.7,18.2882]
[1719416903166,7.3126,136.75,136.71,7.3144]
[1719416903651,7.3141,136.73,136.69,7.3156]
[1719416903861,7.3139,136.73,136.69,7.3154]
[1719416904737,7.3139,136.73,136.69,25.6049]
[1719416905139,7.3143,136.72,136.69,18.2895]
[1719416905336,7.3139,136.73,136.69,25.6053]
[1719416906646,7.3132,136.74,136.69,18.2895]
[1719416906950,7.3132,136.74,136.7,7.3151]
[1719416907258,7.3136,136.73,136.7,7.3151]
[1719416908148,7.3132,136.74,136.7,7.3151]
[1719416908338,7.3137,136.73,136.7,7.3151]
[1719416908539,7.3137,136.73,136.69,25.605]
[1719416909364,7.3137,136.73,136.7,7.3152]
[1719416910260,7.3137,136.73,136.69,25.6053]
[1719416910445,7.3144,136.72,136.69,18.2895]
[1719416910960,16.3626,136.73,136.66,25.6093]
[1719416911169,16.3626,136.73,136.66,18.2924]
[1719416911359,7.3156,136.7,136.66,25.6098]
[1719416911879,7.3159,136.69,136.66,25.6098]
[1719416912166,7.317,136.67,136.64,18.2961]
[1719416912353,7.3169,136.67,136.62,22.9002]
[1719416912545,7.3165,136.68,136.62,22.9002]
[1719416912746,7.3165,136.68,136.64,7.3181]
[1719416914866,18.2855,136.72,136.65,18.2947]
[1719416915047,7.3156,136.7,136.66,7.3171]
[1719416915469,7.3158,136.69,136.65,25.6124]
[1719416915847,7.3154,136.7,136.66,7.3173]
[1719416916057,16.3626,136.73,136.62,22.9002]
[1719416916259,20.0,136.72,136.69,7.3152]
[1719416916468,23.6764,136.73,136.69,25.6046]
[1719416916862,23.6767,136.73,136.69,25.6051]
[1719416917069,7.3142,136.72,136.69,25.6051]
[1719416917262,7.3142,136.72,136.69,18.2894]
[1719416917852,13.62442439,136.78,136.72,7.3141]
[1719416918068,7.3124,136.76,136.72,7.3141]
[1719416918362,7.3124,136.76,136.72,8.41504665]
[1719416918568,7.3117,136.77,136.72,8.41504665]
[1719416918973,7.3122,136.76,136.72,8.41504665]
[1719416920052,7.3122,136.76,136.73,1.46264445]
[1719416920272,7.3117,136.77,136.73,8.77624445]
[1719416920969,7.3117,136.77,136.73,7.3136]
[1719416921161,7.3121,136.76,136.72,7.314]
[1719416921745,7.3117,136.77,136.73,7.3136]
[1719416922549,7.3121,136.76,136.72,7.3139]
[1719416922752,7.3115,136.77,136.73,7.3134]
[1719416923150,7.3115,136.77,136.73,25.5975]
[1719416923565,7.3121,136.76,136.73,18.2841]
[1719416923857,7.3117,136.77,136.74,6.1116]
[1719416924168,7.3117,136.77,136.73,25.5977]
[1719416924773,7.3117,136.77,136.74,1.46246971]
[1719416924973,7.3117,136.77,136.73,25.5977]
[1719416925476,7.3112,136.78,136.74,7.313]
[1719416925771,7.3112,136.78,136.74,8.77549753]
[1719416926380,18.2757,136.8,136.71,22.3443]
[1719416926564,7.3123,136.76,136.72,7.4841]
[1719416926962,7.3123,136.76,136.73,7.3136]
[1719416927347,7.3116,136.77,136.73,8.77610194]
[1719416927552,7.3116,136.77,136.73,7.3136]
[1719416927966,7.3121,136.76,136.73,7.3136]
[1719416928251,7.3121,136.76,136.72,25.7693]
[1719416928776,7.3117,136.77,136.73,7.3136]
[1719416929290,7.312,136.76,136.72,25.7694]
[1719416929476,7.312,136.76,136.72,25.5994]
[1719416931673,7.312,136.76,136.73,7.3136]
[1719416932053,7.3116,136.77,136.73,7.3136]
[1719416932461,7.311,136.79,136.74,7.313]
[1719416932675,7.3111,136.78,136.74,7.313]
[1719416933581,7.3115,136.77,136.73,7.3135]
[1719416935085,7.3121,136.76,136.73,7.3135]
[1719416936897,7.3117,136.77,136.73,7.3135]
[1719416937170,18.2757,136.8,136.74,7.3131]
[1719416937171,7.3112,136.78,136.74,7.3131]
[1719416937653,18.2757,136.8,136.72,18.2854]
[1719416937853,7.3117,136.77,136.73,7.3135]
[1719416938179,7.3116,136.77,136.74,7.3131]
[1719416939372,7.3112,136.78,136.74,7.3131]
[1719416940073,7.3097,136.81,136.77,7.3112]
[1719416940415,7.3104,136.8,136.76,18.2789]
[1719416940753,7.3096,136.81,136.77,8.77351966]
[1719416940954,7.3096,136.81,136.77,7.3114]
[1719416942499,278.8682,136.85,136.77,15.3363]
[1719416942500,266.38069995,136.85,136.77,15.3363]
[1719416942664,7.3109,136.79,136.76,6.3675]
[1719416942987,7.311,136.78,136.76,6.3675]
[1719416943168,7.311,136.78,136.75,7.3122]
[1719416943374,7.3107,136.79,136.75,7.3122]
[1719416944682,18.2722,136.82,136.76,7.3118]
[1719416944683,7.3101,136.8,136.76,7.3118]
[1719416944871,7.3099,136.8,136.77,7.3114]
[1719416945276,7.3099,136.8,136.76,25.5916]
[1719416945985,7.3106,136.79,136.76,18.2798]
[1719416946297,15.6018,136.83,136.74,22.6492]
[1719416946298,7.311,136.78,136.74,22.6492]
[1719416947005,7.3123,136.76,136.74,15.3363]
[1719416947307,7.3117,136.77,136.73,25.5967]
[1719416947930,7.3106,136.79,136.75,25.5938]
[1719416948192,7.3101,136.8,136.76,7.312]
[1719416949604,7.3101,136.8,136.77,7.3114]
[1719416949772,7.3096,136.81,136.77,7.3114]
[1719416950176,7.31,136.8,136.77,7.3114]
[1719416950578,7.31,136.8,136.76,7.3118]
[1719416951681,15.6018,136.83,136.77,7.3114]
[1719416951682,7.3096,136.81,136.77,7.3114]
[1719416951885,7.3096,136.81,136.78,7.3108]
[1719416952089,7.309,136.82,136.78,7.3108]
[1719416952891,7.3094,136.81,136.78,8.03399979]
[1719416953484,7.57472439,136.85,136.79,7.3104]
[1719416953695,7.3089,136.82,136.79,7.3104]
[1719416953893,26.99,136.81,136.79,7.3104]
[1719416954287,7.3079,136.84,136.8,7.3099]
[1719416954494,26.99,136.82,136.8,7.3099]
[1719416954886,7.3079,136.84,136.8,25.5847]
[1719416955303,7.3084,136.83,136.8,18.2748]
[1719416956195,7.3084,136.83,136.79,7.3102]
[1719416957302,45.2582,136.85,136.78,6.1271]
[1719416957483,45.2582,136.85,136.77,18.2775]
[1719416957484,7.3103,136.8,136.77,18.2775]
[1719416957683,7.3094,136.81,136.77,25.589]
[1719416959004,6.8094,136.81,136.77,25.589]
[1719416959191,6.8094,136.81,136.78,7.3109]
[1719416959390,7.309,136.82,136.78,7.3109]
[1719416959602,7.3094,136.81,136.78,7.3109]
[1719416960096,7.3094,136.81,136.77,25.5889]
[1719416960903,7.3094,136.81,136.78,7.3109]
[1719416961088,7.3091,136.82,136.78,7.3109]
[1719416961286,7.3094,136.81,136.78,7.3109]
[1719416961694,7.3102,136.8,136.77,18.2775]
[1719416961899,7.3106,136.79,136.75,13.4174]
[1719416962416,7.31,136.8,136.76,25.5919]
[1719416962582,7.3106,136.79,136.76,18.2801]
[1719416963283,7.3099,136.8,136.76,25.5918]
[1719416964510,7.3089,136.82,136.78,7.3108]
[1719416965014,18.2678,136.86,136.77,16.1335]
[1719416965194,23.45312439,136.87,136.78,0.34]
[1719416965398,23.45312439,136.87,136.79,18.2756]
[1719416965883,7.3081,136.84,136.8,7.3095]
[1719416966211,7.3081,136.84,136.79,25.5858]
[1719416966416,26.99,136.82,136.79,25.5858]
[1719416966717,26.99,136.81,136.79,18.2756]
[1719416966898,26.99,136.81,136.79,25.5857]
[1719416968405,7.3079,136.84,136.8,7.3099]
[1719416968617,26.99,136.81,136.8,7.3099]
[1719416968805,7.3076,136.85,136.81,7.309]
[1719416969006,26.99,136.83,136.81,7.309]
[1719416969317,26.99,136.83,136.8,7.3097]
[1719416969506,7.3078,136.84,136.8,7.3097]
[1719416969830,7.3074,136.85,136.81,7.3092]
[1719416971018,7.3078,136.84,136.81,7.3092]
[1719416971587,7.3073,136.85,136.81,25.5827]
[1719416971793,7.3068,136.86,136.82,7.3085]
[1719416972129,7.3064,136.87,136.83,7.3082]
[1719416972693,7.3068,136.86,136.82,7.3086]
[1719416972937,7.3068,136.86,136.81,24.8232]
[1719416973126,7.3058,136.88,136.84,7.3076]
[1719416973426,34.7353,136.9,136.83,18.2703]
[1719416973427,7.3063,136.87,136.83,25.5784]
[1719416974635,7.3064,136.87,136.83,25.5784]
[1719416976235,7.3057,136.88,136.85,7.3072]
[1719416976400,7.3062,136.87,136.83,18.2703]
[1719416976600,7.3062,136.87,136.83,25.5783]
[1719416979005,7.3058,136.88,136.84,7.3077]
[1719416980524,7.3062,136.87,136.84,7.3077]
[1719416983530,26.67914489,136.91,136.83,18.2703]
[1719416983733,7.3054,136.89,136.85,7.3069]
[1719416984098,7.3047,136.9,136.86,7.3067]
[1719416984298,26.99,136.88,136.86,7.3067]
[1719416984503,26.99,136.88,136.86,8.76793097]
[1719416984716,26.99,136.88,136.86,7.3067]
[1719416984914,7.3057,136.88,136.85,18.2679]
[1719416985134,26.99,136.87,136.84,7.3075]
[1719416985314,19.1043205,136.91,136.83,18.2707]
[1719416985727,7.3063,136.87,136.83,25.5785]
[1719416985905,7.3068,136.86,136.83,18.2707]
[1719416986331,7.3064,136.87,136.83,25.579]
[1719416986839,7.3058,136.88,136.84,7.3075]
[1719416987136,7.3065,136.87,136.83,25.579]
[1719416987633,7.3068,136.86,136.83,18.2707]
[1719416987940,26.99,136.84,136.81,32.1322]
[1719416988116,7.3069,136.86,136.82,7.3087]
[1719416988309,26.99,136.84,136.82,7.3087]
[1719416988704,26.99,136.84,136.81,24.8231]
[1719416988705,34.2978,136.84,136.81,32.1324]
[1719416988921,26.99,136.84,136.81,24.8231]
[1719416989227,18.2644,136.88,136.81,32.1324]
[1719416989420,18.2644,136.88,136.81,24.8231]
[1719416989729,26.99,136.83,136.81,32.1324]
[1719416991224,26.99,136.83,136.81,24.8231]
[1719416991632,26.99,136.83,136.81,32.1324]
[1719416992212,26.99,136.83,136.82,7.3088]
[1719416992532,7.3068,136.86,136.82,7.3088]
[1719416993435,7.3073,136.85,136.82,7.3088]
[1719416993728,7.3073,136.85,136.81,32.1323]
[1719416993918,7.3073,136.85,136.82,7.3088]
[1719416994518,7.3073,136.85,136.81,32.1323]
[1719416995104,26.99,136.84,136.81,32.1323]
[1719416996028,34.2978,136.84,136.81,24.8231]
[1719416996934,7.3078,136.84,136.81,24.8231]
[1719416997434,7.3078,136.84,136.81,6.5497]
[1719416999031,7.3074,136.85,136.81,13.859]
[1719416999519,7.3074,136.85,136.81,32.1323]
[1719416999835,7.3069,136.86,136.82,7.3088]
[1719417000222,7.3075,136.85,136.81,33.59392413]
[1719417000416,7.3069,136.86,136.82,7.3087]
[1719417000618,7.3074,136.85,136.81,33.59382413]
[1719417000929,26.99,136.82,136.79,7.3101]
[1719417001236,7.3083,136.83,136.79,13.3443]
[1719417002128,7.3076,136.85,136.8,25.5846]
[1719417002433,26.99,136.84,136.81,1.46176891]
[1719417002618,7.308,136.84,136.8,25.5844]
[1719417002814,7.3074,136.85,136.81,7.3093]
[1719417003129,34.2978,136.84,136.81,7.3093]
[1719417003334,34.2978,136.84,136.8,25.5845]
[1719417004620,7.3078,136.84,136.8,25.5845]
[1719417004817,7.3075,136.85,136.81,7.3093]
[1719417006135,34.2762,136.89,136.79,6.0344]
[1719417006322,6.9430205,136.91,136.81,26.99]
[1719417006645,26.99,136.86,136.85,7.3072]
[1719417007141,26.99,136.86,136.84,25.5768]
[1719417008345,34.2976,136.85,136.81,25.5812]
[1719417008644,18.2642,136.88,136.81,18.2722]
[1719417008842,18.2615,136.9,136.82,1.4616451]
[1719417009015,26.99,136.84,136.82,1.4616451]
[1719417009216,7.3065,136.87,136.83,7.308]
[1719417009443,7.3058,136.88,136.84,7.3077]
[1719417009654,7.3063,136.87,136.83,25.5786]
[1719417010018,7.3068,136.86,136.82,7.3086]
[1719417010921,7.3053,136.89,136.85,7.3069]
[1719417011236,7.3057,136.88,136.84,7.3076]
[1719417012047,7.3047,136.9,136.85,19.72908038]
[1719417012239,7.3047,136.9,136.86,7.3063]
[1719417012420,7.3052,136.89,136.85,25.5748]
[1719417012614,0.8441205,136.91,136.86,0.17]
[1719417012840,0.8441205,136.91,136.87,18.2653]
[1719417013019,0.8441205,136.91,136.84,6.4471]
[1719417013344,26.99,136.88,136.85,0.17]
[1719417014139,26.99,136.88,136.87,7.3062]
[1719417014340,26.99,136.88,136.86,25.5727]
[1719417014957,0.8441205,136.91,136.86,18.2662]
[1719417015131,0.8441205,136.91,136.88,7.3055]
[1719417015337,8.1485205,136.91,136.87,7.306]
[1719417015844,0.8441205,136.91,136.88,19.72480251]
[1719417016027,0.8441205,136.91,136.89,7.305]
[1719417016339,0.8441205,136.91,136.88,19.72480251]
[1719417016340,0.8441205,136.91,136.88,25.5693]
[1719417016756,8.1481205,136.91,136.88,18.2638]
[1719417017124,0.8441205,136.91,136.85,18.2671]
[1719417017743,7.3051,136.89,136.85,25.5739]
[1719417018524,7.3051,136.89,136.86,7.3066]
[1719417019350,18.2616,136.9,136.83,16.3571]
[1719417019540,18.2616,136.9,136.84,7.3077]
[1719417019541,7.306,136.88,136.84,7.3077]
[1719417020428,7.3064,136.87,136.83,7.3082]
[1719417020624,18.2616,136.9,136.82,18.2711]
[1719417020958,7.3074,136.85,136.81,7.309]
[1719417021165,18.2649,136.88,136.81,18.2734]
[1719417021365,7.3062,136.87,136.83,25.5787]
[1719417021657,19.1052205,136.91,136.83,18.2707]
[1719417021833,7.3062,136.87,136.83,25.5788]
[1719417023432,0.8441205,136.91,136.85,18.2676]
[1719417023744,0.8441205,136.91,136.86,0.17]
[1719417024144,0.8441205,136.91,136.85,18.2676]
[1719417024145,7.3054,136.89,136.85,25.5746]
[1719417024335,8.1483205,136.91,136.87,7.3061]
[1719417024541,7.3049,136.9,136.86,7.3065]
[1719417025065,7.3051,136.89,136.85,25.5746]
[1719417025358,0.8441205,136.91,136.85,25.5746]
[1719417025359,7.3048,136.9,136.85,25.5746]
[1719417025538,0.8441205,136.91,136.86,7.3065]
[1719417025539,8.1484205,136.91,136.86,7.3065]
[1719417025853,0.8441205,136.91,136.86,7.3065]
[1719417026159,7.3049,136.9,136.86,7.3065]
[1719417026853,7.3054,136.89,136.85,18.2676]
[1719417027757,7.3054,136.89,136.85,25.5745]
[1719417028155,7.3047,136.9,136.86,8.7678059]
[1719417028538,7.3047,136.9,136.86,7.3066]
[1719417030556,0.8441205,136.91,136.88,7.3055]
[1719417030747,0.8441205,136.91,136.87,25.5713]
[1719417031053,8.1483205,136.91,136.87,25.5713]
[1719417032555,8.1483205,136.91,136.87,18.2654]
[1719417032748,0.8441205,136.91,136.88,7.3056]
[1719417032947,0.8441205,136.91,136.87,18.2654]
[1719417032948,0.8441205,136.91,136.89,18.2627]
[1719417033154,0.8441205,136.91,136.9,7.3046]
[1719417033859,0.8441205,136.91,136.89,25.5676]
[1719417034355,0.8441205,136.91,136.9,7.3046]
[1719417045376,0.8441205,136.91,136.9,7.6446]
[1719417046075,0.8441205,136.91,136.9,7.4746]
[1719417046262,0.8441205,136.91,136.9,7.3046]
[1719417049476,0.8441205,136.91,136.89,25.5676]
[1719417049657,0.8441205,136.91,136.9,7.3046]
[1719417049860,0.8441205,136.91,136.89,25.5677]
[1719417050068,0.8441205,136.91,136.87,7.3058]
[1719417050069,35.1384205,136.91,136.87,7.3058]
[1719417050372,0.8441205,136.91,136.88,18.2639]
[1719417050575,0.8441205,136.91,136.89,7.3051]
[1719417050762,0.8441205,136.91,136.9,7.3046]
[1719417050962,0.8441205,136.91,136.89,7.3049]
[1719417051676,0.8441205,136.91,136.88,25.5693]
[1719417052055,7.3049,136.9,136.86,7.3062]
[1719417052362,0.8441205,136.91,136.85,18.2669]
[1719417052771,8.1483205,136.91,136.87,7.3058]
[1719417057282,7.3046,136.9,136.86,7.3065]
[1719417060519,0.8441205,136.91,136.87,18.2654]
[1719417060884,8.1482205,136.91,136.87,25.5713]
[1719417061379,0.8441205,136.91,136.88,7.3055]
[1719417061568,0.8441205,136.91,136.87,18.2654]
[1719417061891,0.8441205,136.91,136.88,7.3056]
[1719417062262,8.1482205,136.91,136.87,25.5714]
[1719417062466,0.8441205,136.91,136.88,7.3054]
[1719417062666,8.1481205,136.91,136.87,25.5713]
[1719417063072,0.8441205,136.91,136.88,7.3056]
[1719417063899,0.8441205,136.91,136.89,7.305]
[1719417064192,0.8441205,136.91,136.9,7.3046]
[1719417065095,0.8441205,136.91,136.89,26.48638878]
[1719417065890,0.8441205,136.91,136.9,8.76540264]
[1719417066101,0.8441205,136.91,136.9,7.4746]
[1719417066288,0.8441205,136.91,136.9,7.3046]
[1719417067571,0.8441205,136.91,136.9,7.4746]
[1719417070682,0.8441205,136.91,136.9,8.93384918]
[1719417070881,0.8441205,136.91,136.9,36.09384918]
[1719417071592,0.8441205,136.91,136.9,34.6346]
[1719417072196,0.8441205,136.91,136.9,7.6446]
[1719417072383,0.8441205,136.91,136.9,34.6346]
[1719417073499,0.8441205,136.91,136.89,18.2628]
[1719417073792,0.8441205,136.91,136.89,25.5675]
[1719417073993,0.8441205,136.91,136.9,7.3046]
[1719417074176,0.8441205,136.91,136.89,25.5678]
[1719417074376,0.8441205,136.91,136.88,7.3055]
[1719417074790,8.1481205,136.91,136.87,7.3059]
[1719417075087,0.8441205,136.91,136.88,7.3056]
[1719417075291,0.8441205,136.91,136.89,7.305]
[1719417075480,0.8441205,136.91,136.88,25.5693]
[1719417076987,8.1483205,136.91,136.87,7.3061]
[1719417077806,0.8441205,136.91,136.88,7.3055]
[1719417078596,0.8441205,136.91,136.86,18.2668]
[1719417078918,8.1484205,136.91,136.87,7.306]
[1719417079075,7.3047,136.9,136.86,25.5734]